Cogmind - Beta 16 @@@ ROGUE MODE // 2026.01.23 @ 22:09:45 Player: vorsii Result: Destroyed by WI-SBY(R) with Subdweller Beam Cannon Performance ------------- Evolutions (0) 0 Regions Visited (2) 400 Robots Destroyed (14) 70 Value Destroyed (265) 265 Prototype IDs (0) 0 Alien Tech Used (0) 0 Bonus (0) 0 TOTAL SCORE: 735 Bonus ------- None Cogmind --------- Core Integrity 0/250 Matter 233/300 Energy 71/100 System Corruption 0% Temperature Cool (9) Movement Rolling (105) Ox1 Location -10/Subcaves Parts ------- > --- POWER (1) -------- (None) > --- PROPULSION (2) --- Wheel Compact Wheel > --- UTILITY (2) ------ High-capacity Storage Unit Structural Scanner > --- WEAPON (2) ------- EM Pulse Gun Subdweller Machine Gun > --- INVENTORY (20) --- Light Ion Engine Wheel Wheel Wheel Compact Wheel Cargo Storage Unit Subdweller Optics Sensor Array Sensor Array Sensor Array Scrap Shield Medium Laser Light Assault Rifle Datajack Multitool Makeshift Hammer Peak State ------------ > --- POWER ------------ Ion Engine > --- PROPULSION ------- Wheel Compact Wheel > --- UTILITY ---------- Cargo Storage Unit > --- WEAPON ----------- Assault Rifle Subdweller Machine Gun > --- INVENTORY -------- High-capacity Storage Unit SUBCON Basin [Rating: 26] Favorites ----------- Power Ion Engine Engine Ion Engine Propulsion Wheel Wheel Wheel Utility Structural Scanner Device Structural Scanner Storage High-capacity Storage Unit Weapon Assault Rifle Energy Gun EM Pulse Gun Ballistic Gun Assault Rifle Special Weapon Mining Laser Special Melee Weapon Datajack Build | -11 -10 -10 ------- Run | Yrd Mat Sub Slots Evolved . | . . . Power . | . . . Propulsion . | . . . Utility . | . . . Weapon . | . . . Parts Attached 20 | 4 13 3 Power 2 | 1 1 . Engine 2 | 1 1 . Core . | . . . Reactor . | . . . Propulsion 5 | 2 3 . Treads . | . . . Leg . | . . . Wheel 5 | 2 3 . Hover . | . . . Flight . | . . . Utility 6 | 1 4 1 Device 1 | . 1 . Storage 5 | 1 3 1 Processor . | . . . Hackware . | . . . Protection . | . . . Artifact . | . . . Weapon 7 | . 5 2 Energy Gun 2 | . 2 . Energy Cannon . | . . . Ballistic Gun 2 | . 1 1 Ballistic Cannon . | . . . Launcher . | . . . Special Weapon 2 | . 1 1 Impact Weapon . | . . . Slashing Weapon . | . . . Piercing Weapon . | . . . Special Melee Weapon 1 | . 1 . Unidentified Prototypes . | . . . Parts Lost 5 | . 2 3 Power 1 | . . 1 Propulsion . | . . . Utility . | . . . Weapon 4 | . 2 2 Highest Loss Streak 3 | . 1 3 To Critical Strikes . | . . . Average Backups 10 | 2 6 14 Power . | . . . Propulsion 2 | . 2 3 Utility 2 | . . 4 Weapon 3 | 1 2 4 Tool/Special . | . . . Unused Backups 14 | . . 14 Power 1 | . . 1 Propulsion 3 | . . 3 Utility 4 | . . 4 Weapon 4 | . . 4 Tool/Special 2 | . . 2 Average Slot Usage (%) 95 | . 95 95 Engine 13 | . 14 13 Wheel 28 | . 28 28 Device 9 | . 10 9 Storage 14 | . 14 14 Energy Gun 11 | . 15 7 Ballistic Gun 13 | . 6 20 Special Weapon 2 | . 5 . Peak Build Rating 26 | 4 8 26 Average Rating 7 | 3 6 9 On Entrance 4 | . 4 8 Avg Prop Armor Cover (%) . | . . . Naked Turns . | . . . Heaviest Build 151 | 10 50 151 Greatest Support 26 | 20 26 26 Greatest Overweight (x) 5 | . 1 5 Average Overweight (x) . | . . 1 Largest Inventory Capacity 30 | 8 20 30 Average Capacity 17 | 7 15 20 Most Carried 20 | 4 15 20 Average Carried 11 | 2 6 15 Final Capacity 20 | 8 20 20 Final Carried 18 | 4 15 18 Class Distribution -------------------- 94% | Mutant 5% | Hauler-Mutant Dominant Class ---------------- Mutant | -10/Materials Mutant | -10/Subcaves Resources | -11 -10 -10 ----------- Run | Yrd Mat Sub Matter Collected 428 | 187 212 29 Remotely . | . . . Salvage Created 375 | . 324 51 Parts 32 | . 27 5 Haulers Intercepted . | . . . Recyclers Shooed . | . . . Parts Field Recycled . | . . . Retrieved Matter . | . . . Parts Self-Destructed 8 | . . 8 Prevented . | . . . Parts Restored . | . . . Kills | -11 -10 -10 ------- Run | Yrd Mat Sub Combat Hostiles Destroyed 8 | . 7 1 Guns 5 | . 4 1 Cannons 3 | . 3 . Classes Destroyed 7 | . 6 1 Worker 2 | . 2 . Recycler 2 | . 2 . Operator 1 | . 1 . Watcher 1 | . 1 . Swarmer 3 | . 3 . Grunt 4 | . 4 . Subdweller 1 | . . 1 Best Kill Streak 3 | . 3 1 Combat Bots Only 3 | . 3 1 Max Kills in Single Turn 2 | . 2 1 Gunslinging . | . . . Exploded . | . . . Melee . | . . . Uniques/NPCs Destroyed . | . . . Combat | -11 -10 -10 -------- Run | Yrd Mat Sub Hostile Shots Fired 62 | . 31 31 Missed 13 | . 5 8 Hits 49 | . 26 23 Projectile 49 | . 26 23 Critical Strikes 1 | . . 1 Damage Taken 824 | . 295 529 Core 275 | . 96 179 Absorbed by Shields . | . . . Core Remaining (%) 100 | 100 . . Volleys Fired 36 | . 25 11 Largest 2 | . 2 2 Hottest 150 | . 150 110 Shots Fired 63 | . 43 20 Gun 50 | . 31 19 Cannon . | . . . Launcher . | . . . Special 13 | . 12 1 Kinetic 25 | . 8 17 Thermal 18 | . 17 1 Explosive . | . . . Electromagnetic 20 | . 18 2 Robot Hit Streak 7 | . 4 7 Robot Miss Streak 3 | . 3 2 Penetration Max . | . . . Secondary Targets . | . . . Shots Hit Robots 35 | . 21 14 Core Hits 15 | . 13 2 Critical Kills . | . . . Critical Parts Destroyed . | . . . Critical Strikes . | . . . Melee Attacks . | . . . Impact . | . . . Slashing . | . . . Piercing . | . . . Sneak Attacks . | . . . Combat Hostiles . | . . . Follow-up Attacks . | . . . Damage Inflicted 602 | . 371 231 Guns 423 | . 203 220 Cannons . | . . . Explosions . | . . . Melee . | . . . Ramming . | . . . Kinetic 244 | . 34 210 Thermal 204 | . 193 11 Explosive . | . . . Electromagnetic 154 | . 144 10 Impact . | . . . Slashing . | . . . Piercing . | . . . Highest Corruption . | . . . Average Corruption . | . . . Corruption Purged . | . . . Corruption Blocked . | . . . Overload Shots . | . . . Overflow Damage . | . . . Projectiles . | . . . Explosions . | . . . Melee . | . . . Knockbacks . | . . . Impact . | . . . Kinetic . | . . . Secondary . | . . . Self-Inflicted Damage . | . . . Shots . | . . . Rammed . | . . . Targets Rammed . | . . . Kicked . | . . . Crushed . | . . . Highest Temperature 276 | . 276 . Average Temperature 86 | . 86 . Received Heat Transfer 225 | . 138 87 Siege Activations . | . . . Martial Activations . | . . . Shielding Activations . | . . . Robots Disrupted . | . . . Combat Hostiles . | . . . Robots Corrupted . | . . . Combat Hostiles . | . . . Parts Fried . | . . . Impact Corruptions . | . . . Robots Melted . | . . . Combat Hostiles . | . . . Parts Melted . | . . . Heat Transferred 504 | . 424 80 Parts Sabotaged . | . . . Parts Stolen . | . . . Parts Stripped . | . . . Power Chain Reactions . | . . . Alert | -11 -10 -10 ------- Run | Yrd Mat Sub Maximum Alert Level . | . . . Low Security (%) 100 | 100 100 . Level 1 . | . . . Level 2 . | . . . Level 3 . | . . . Level 4 . | . . . Level 5 . | . . . High Security . | . . . Max Security . | . . . Peak Influence 60 | . 60 . Initial . | . . . Average 14 | . 14 . Influence Increases 230 | . 230 . Destroy 0b10 Robot/C 140 | . 140 . Destroy 0b10 Robot/NC 30 | . 30 . Destroy Leader 22 | . 22 . Successful Hack 4 | . 4 . Destroy Structure 4 | . 4 . Lose Combat Pursuer 30 | . 30 . Influence Decreases 230 | . 230 . Time Decay 196 | . 196 . Lost Part 10 | . 10 . Purge Threat 24 | . 24 . Squads Dispatched 2 | . 2 . Investigation 1 | . 1 . Extermination . | . . . Reinforcement 1 | . 1 . Assault . | . . . Garrison . | . . . Intercept . | . . . Searches Triggered . | . . . Construction Impeded . | . . . Haulers Reinforced . | . . . Active Scanning Responses . | . . . Cargo Convoy Interrupts . | . . . Stealth | -11 -10 -10 --------- Run | Yrd Mat Sub Distress Signals 2 | . 2 . Communications Jammed . | . . . Distress Signals . | . . . Times Spotted 20 | . 16 4 Peak Tracking Total 4 | . 4 4 Tactical Retreats 1 | . 1 . Traps | -11 -10 -10 ------- Run | Yrd Mat Sub Traps Triggered . | . . . Indirectly . | . . . Trap Hack Attempts . | . . . Triggered . | . . . Disarmed . | . . . Reprogrammed . | . . . Reused . | . . . Traps Extracted . | . . . Installed . | . . . Triggered . | . . . Machines | -11 -10 -10 ---------- Run | Yrd Mat Sub Machines Disabled . | . . . Max in Single Turn . | . . . Machines Repaired . | . . . Machines Dismantled . | . . . Machines Sabotaged . | . . . Overloaded Fab Kills . | . . . Hacking | -11 -10 -10 --------- Run | Yrd Mat Sub Machines Accessed 6 | . 3 3 Terminals 3 | . 3 . Fabricators . | . . . Repair Stations . | . . . Recycling Units . | . . . Scanalyzers . | . . . Garrison Access . | . . . Total Hacks 19 | . 12 7 Successful 13 | . 6 7 Failed 6 | . 6 . Catastrophic . | . . . Database Lockouts . | . . . Manual 1 | . . 1 Terminals 12 | . 12 . Fabricators . | . . . Repair Stations . | . . . Recycling Units . | . . . Scanalyzers . | . . . Garrison Access . | . . . Terminal Hacks 13 | . 6 7 Record 7 | . 2 5 Robot Analysis 1 | . 1 . Open Door 1 | . . 1 Unreport Threat 1 | . 1 . Locate Traps 2 | . 2 . Release Object 1 | . . 1 Fabricator Hacks . | . . . Repair Station Hacks . | . . . Recycling Unit Hacks . | . . . Scanalyzer . | . . . Garrison Access Hacks . | . . . Unauthorized Hacks . | . . . Terminals . | . . . Fabricators . | . . . Repair Stations . | . . . Recycling Units . | . . . Scanalyzers . | . . . Garrison Access . | . . . Data Cores Recovered 1 | . 1 . Used 1 | . 1 . Hacking Detections 2 | . 2 . Full Trace Events 2 | . 2 . Feedback Events . | . . . Feedback Blocked . | . . . Robot Schematics Acquired . | . . . Robots Built . | . . . Authchips . | . . . Time . | . . . Total Robot Build Rating . | . . . Part Schematics Acquired . | . . . Parts Built . | . . . Authchips . | . . . Time . | . . . Total Part Build Rating . | . . . Part Studies Acquired . | . . . Parts Repaired . | . . . Time . | . . . Parts Recycled . | . . . Recycled Matter . | . . . Retrieved Matter . | . . . Retrieved Components . | . . . Parts Scanalyzed . | . . . Part Schematics Acquired . | . . . Parts Damaged . | . . . Bothacking | -11 -10 -10 ------------ Run | Yrd Mat Sub Used RIF Installer . | . . . Robots Hacked . | . . . Non-combat . | . . . Combat . | . . . Robot Hacks Applied . | . . . Relay Couplers Released . | . . . Fabnet Peak Effective % . | . . . Robots Rewired . | . . . Allies Hacked . | . . . Hacks Repelled . | . . . Allies | -11 -10 -10 -------- Run | Yrd Mat Sub Total Allies . | . . . Largest Group . | . . . Highest-Rated Group . | . . . Highest-Rated Ally . | . . . Total Orders . | . . . Ally Attacks . | . . . Total Damage . | . . . Kills . | . . . Allies Corrupted . | . . . Allies Melted . | . . . Intel | -11 -10 -10 ------- Run | Yrd Mat Sub Active Infowar (turns) 1212 | . 590 622 Structural 1212 | . 590 622 Robot Analysis Total 1 | . 1 . Derelict Logs Recovered . | . . . Drone Launches . | . . . Drone Recoveries . | . . . Exploration | -11 -10 -10 ------------- Run | Yrd Mat Sub Turns Passed 1723 | 35 804 884 Spaces Moved 1435 | 30 656 749 Core 1 | 1 . . Treads . | . . . Legs . | . . . Wheels 1434 | 29 656 749 Hover . | . . . Flight . | . . . Fastest Speed 50 | 50 80 105 Average Speed 103 | 79 99 107 Slowest Speed 165 | 80 105 165 Overloaded Moves . | . . . Propulsion Burnouts . | . . . Robots Hopped . | . . . Potential Cave-ins . | . . . Cave-ins Triggered . | . . . Exploration Rate (%) 39 | 3 68 46 Regions Visited 2 Branch Regions 1 Pre-discovered Areas 1 | . . 1 Known Exits Taken . | . . . Unknown Exits Taken 2 | 1 1 . Scrap Searched . | . . . Spaces Dug . | . . . Terrain Destroyed 3 | . 3 . Melee . | . . . Projectile 3 | . 3 . AOE . | . . . Terrain Rammed . | . . . Walls Destroyed . | . . . Machines Disabled . | . . . Actions | -11 -10 -10 --------- Run | Yrd Mat Sub Total 1600 | 41 741 818 Wait 20 | . 19 1 Move 1433 | 29 655 749 Hop . | . . . Pick Up 55 | 8 21 26 Fast Attach . | . . . Attach 16 | 4 7 5 Detach 2 | . . 2 Swap 9 | . 8 1 Drop 28 | . 6 22 Fire 36 | . 25 11 Melee . | . . . Ram . | . . . Kick . | . . . Crush . | . . . Escape Stasis . | . . . Rewire . | . . . Trap . | . . . Miscellaneous 1 | . . 1 Route ------- -11/Scrapyard -10/Materials -10/Subcaves History --------- Turn | Location | Event 19 | -11/Scrapyard | Discovered new exit (range 16) 36 | -11/Scrapyard | Entered Materials 312 | -10/Materials | Build established: Mutant 810 | -10/Materials | Discovered new exit (range 9) 840 | -10/Materials | Entered Subcaves 959 | -10/Subcaves | Visited Clippyterm 962 | -10/Subcaves | Learned Factory garrison access intel 1370 | -10/Subcaves | Found SUBCON Basin 1379 | -10/Subcaves | Released subatomizers from SUBCON Basin 1500 | -10/Subcaves | Learned location of Zion (-7) 1500 | -10/Subcaves | Met a Zionite searching for "candidates" 1511 | -10/Subcaves | A swath of the cavern ceiling suddenly collapsed 1705 | -10/Subcaves | Core integrity fell below 50% 1715 | -10/Subcaves | Core integrity fell below 20% 1724 | -10/Subcaves | Destroyed by WI-SBY(R) with Subdweller Beam Cannon Last Messages --------------- 01479_ XL-X9Z(z): "She is not going to be happy we haven't found any suitable candidates yet." 01495_ Dropped Lgt. Assault Rifle. 01495_ Dropped Mining Claw. 01496_ Acquired Scrap Shield. 01500_ XL-X9Z(z): "Hey you! It's really dangerous down here, I feel that you could die at any moment. For your health and safety might I suggest a trip to Zion?" World map updated: -7/Zion. A swath of the cavern ceiling suddenly collapses. 01564_ Subatomizers dissect the Lgt. Assault Rifle. 01692_ 0Q-0IL(R) destroyed. 01698_ Subatomizers dissect the Sub. Monowheel. 01703_ Acquired Sub. Optics. 01709_ Subatomizers dissect the Sub. Monowheel. 01712_ Assault Rifle destroyed. 01715_ Ion Engine destroyed. 01718_ Enh. Flamer destroyed. 01719_ Subatomizers dissect the Sub. Monowheel. 01723_ KJ-QUV(R) IFF system glitched. Map ----- +----------------------------------------------------+ | ?????????????????????????????????????????????????? | | ?????????? ##????????????????????????????????????? | | ????????? ##????????????????????????????????????? | | ???????? ###??? ###???????????????????????????? | | ?????? ####? ###??????????????????????????? | | ???? #### ##????## %##??????????????? | | ??? ### ????## [###?????????????? | | ??? ## ??????## ###?????????????? | | ???? ??????? ##?????????????? | | ????? ######???? #?????????????? | | ?????? #######???? ???????????????? | | ??????? # ##???? ???????????????? | | ???????? #???? ????????????????? | | ????????? ????????? ??????????????? | | ????????### # ???????? ## ??????????????? | | ???????#### ###???????? #"""# ??????????????? | | ##????#### ## ????????## "##??????????????? | | ######### ### ???????## ###??????????????? | | ### #### ## ###?????#### ##??????????????? | | ### #### ##?????#### ###?????????????? | | # # ## ##### ##?????## #####???????????? | | ###""## #### ###?????### #####??????????? | | ####### ###### #####??#### ###??????????? | | ####""#" ##### ############ ##??????????? | | "#""#"""# #### #R ######* ##??????????? | | "#"##"########## R @&%R= ######??????????? | | #"############## ## # ##![ ######??????????? | | ""#"####??????############### "##??????????????? | | "####?????????############### "##??????????????? | | # ""#????????????????????## ""###??????????????? | | #"??#????????????????????##########??????????????? | | ?????????????????????????#########???????????????? | | ?????????????????????????????????????????????????? | | ?????????????????????????????????????????????????? | | ?????????????????????????????????????????????????? | | ?????????????????????????????????????????????????? | | ?????????????????????????????????????????????????? | | ?????????????????????????????????????????????????? | | ?????????????????????????????????????????????????? | | ?????????????????????????????????????????????????? | | ?????????????????????????????????????????????????? | | ?????????????????????????????????????????????????? | | ?????????????????????????????????????????????????? | | ?????????????????????????????????????????????????? | | ?????????????????????????????????????????????????? | | ?????????????????????????????????????????????????? | | | | | | | | | +----------------------------------------------------+ Best States ------------- Heat Dissipation 25 Energy Generation 10 Energy Capacity 250 Matter Stores 300 Matter Capacity 300 Sight Range 16 Terrain Scan Density 10 Evasion (%) 44 Item Schematics ----------------- None Robot Schematics ------------------ None Fabricated ------------ Nothing Repaired ---------- Nothing Studied --------- None Alien Tech Used ----------------- None Achievements -------------- Dynamic Key Tank Challenges ------------ None Game ------ Seed AbsorptionBurstEdition Manual? 0 Play Time 00:24:42 Cumulative 12.3 hours Start 2026.01.23 @ 21:46:48 End 2026.01.23 @ 22:09:45 Sessions 1 Manual Loads 0 Difficulty Rogue Special Mode None Game No. 17 Rogue 17 Adventurer 0 Explorer 0 Win Type - Total 0 Types 0/0/0/0/0/0/0/0/0/0 Lore% 16 Gallery% 11 Achievement% 13 Wizard Run 0 Options --------- Layout 0 ASCII 0 Keyboard 0 Movement Mouse Keybinds 0 Fullscreen 1 Font 36/Smallcaps Map View 76x50 Zoom Use 0% Tactical HUD 1 Map Filters NONE Filters NONE Steam 1 RUN: 5d1c9e82-c404-40b3-be1d-02bbae7f7fa8